bitfinex-derivatives/quotes_ETHF0:USTF0_20250704
["timestamp","ask_amount","ask_price","bid_price","bid_amount"]
[1751651511564,1.95505872,2495.2,2495.1,0.80127]
[1751651512868,1.15378872,2495.2,2495.1,0.80127]
[1751651513963,3.2078,2495.3,2495.2,0.80127]
[1751651514665,4.00904,2495.3,2495.2,0.80127]
[1751651515268,3.2078,2495.3,2495.2,0.80127]
[1751651515760,2.14433,2495.4,2495.3,0.80124]
[1751651519469,1.3431,2495.4,2495.3,0.80124]
[1751651519868,3.2078,2495.6,2495.2,2.00313]
[1751651520065,3.2078,2495.6,2495.5,0.80117]
[1751651522271,4.00894,2495.6,2495.5,0.80117]
[1751651522470,6.08634,2495.6,2495.5,0.80117]
[1751651522666,5.2852,2495.6,2495.5,0.80117]
[1751651523069,4.5843,2495.6,2495.5,0.80117]
[1751651524472,5.38544,2495.6,2495.5,0.80117]
[1751651524671,4.5843,2495.6,2495.5,0.80117]
[1751651524971,5.38544,2495.6,2495.5,0.80117]
[1751651525571,4.5843,2495.6,2495.5,0.80117]
[1751651526374,1.3765,2495.6,2495.5,0.80117]
[1751651529864,3.8965,2495.7,2495.6,0.80114]
[1751651530272,4.69761,2495.7,2495.6,0.80114]
[1751651530577,6.00911,2495.7,2495.6,0.80114]
[1751651532877,0.80123,2495.4,2495.3,0.80119]
[1751651533487,0.8013,2495.2,2495.1,0.80125]
[1751651534270,2.181,2495.2,2495.1,0.80125]
[1751651534669,1.3797,2495.2,2495.1,0.80125]
[1751651534876,1.47378,2495.6,2495.3,0.80124]
[1751651535073,0.80123,2495.4,2495.3,0.8012]
[1751651535480,2.18093,2495.4,2495.3,0.8012]
[1751651535679,2.83193,2495.4,2495.3,0.8012]
[1751651536282,2.0307,2495.4,2495.0,3.2078]
[1751651536490,2.0307,2495.4,2495.0,0.80131]
[1751651536491,0.8013,2495.1,2495.0,0.80131]
[1751651536985,2.832,2495.1,2495.0,0.80131]
[1751651539186,3.98031295,2495.1,2495.0,0.80131]
[1751651539381,2.0307,2495.1,2495.0,0.80131]
[1751651539585,2.832,2495.1,2495.0,0.80131]
[1751651540985,2.0307,2495.1,2495.0,0.80131]
[1751651541287,2.832,2495.1,2495.0,0.80131]
[1751651541486,2.0307,2495.1,2495.0,0.80131]
[1751651541687,3.2078,2495.2,2495.1,0.8013]
[1751651541886,4.3571874,2495.2,2495.1,0.8013]
[1751651542186,3.2078,2495.2,2495.1,0.8013]
[1751651542579,4.5539,2495.2,2495.1,0.8013]
[1751651542988,3.2078,2495.2,2495.1,5.8013]
[1751651543182,5.35499,2495.8,2495.4,2.00297]
[1751651543485,0.80112,2495.7,2495.6,0.80114]
[1751651543686,2.22452,2495.7,2495.6,0.80114]
[1751651545289,3.36798027,2495.7,2495.6,0.80114]
[1751651547395,1.4234,2495.7,2495.6,0.80114]
[1751651547596,2.22451,2495.7,2495.6,0.80114]
[1751651548299,1.4234,2495.7,2495.6,0.80114]
[1751651549392,2.22451,2495.7,2495.6,0.80114]
[1751651557403,1.4234,2495.7,2495.6,0.80114]
[1751651557604,2.22451,2495.7,2495.6,0.80114]
[1751651558405,3.36261955,2495.7,2495.6,0.80114]
[1751651558704,2.56150955,2495.7,2495.6,0.80114]
[1751651558905,1.4234,2495.7,2495.6,0.80114]
[1751651560008,4.00888,2495.8,2495.7,0.80111]
[1751651560207,5.14697625,2495.8,2495.7,0.80111]
[1751651560407,6.48417625,2495.8,2495.7,0.80111]
[1751651564309,3.27637625,2495.8,2495.7,0.80111]
[1751651564607,6.48417625,2495.8,2495.7,0.80111]
[1751651565504,4.34589625,2495.8,2495.7,0.80111]
[1751651565710,5.14696625,2495.8,2495.7,0.80111]
[1751651566004,4.34589625,2495.8,2495.7,0.80111]
[1751651566411,5.14696625,2495.8,2495.7,0.80111]
[1751651567210,4.00887,2495.8,2495.7,0.80111]
[1751651567410,3.2078,2495.8,2495.7,0.80111]
[1751651567810,4.00887,2495.8,2495.7,0.80111]
[1751651569011,3.2078,2495.8,2495.7,0.80111]
[1751651570405,5.14646821,2495.8,2495.7,0.80111]
[1751651570807,4.34539821,2495.8,2495.7,0.80111]
[1751651571007,5.14646821,2495.8,2495.7,0.80111]
[1751651575817,1.93866821,2495.8,2495.7,0.80111]
[1751651576215,3.34806821,2495.8,2495.7,0.80111]
[1751651576912,2.54699821,2495.8,2495.7,0.80111]
[1751651577114,3.34806821,2495.8,2495.7,0.80111]
[1751651577314,2.54699821,2495.8,2495.7,0.80111]
[1751651577515,3.34806821,2495.8,2495.7,0.80111]
[1751651578017,2.54699821,2495.8,2495.7,0.80111]
[1751651580021,3.34806821,2495.8,2495.7,0.80111]
[1751651580217,2.54699821,2495.8,2495.7,0.80111]
[1751651580716,3.34806821,2495.8,2495.7,0.80111]
[1751651582119,2.54699821,2495.8,2495.7,0.80111]
[1751651582415,1.13759821,2495.8,2495.7,0.80111]
[1751651583622,1.93866821,2495.8,2495.7,0.80111]
[1751651584527,1.13759821,2495.8,2495.7,0.80111]
[1751651584718,3.36756821,2495.8,2495.7,0.80111]
[1751651584917,2.56649821,2495.8,2495.7,0.80111]
[1751651586725,3.36756821,2495.8,2495.7,0.80111]
[1751651586925,2.56649821,2495.8,2495.7,0.80111]
[1751651588327,1.13759821,2495.8,2495.7,0.80111]
[1751651589924,2.39421411,2496.3,2496.2,0.80095]
[1751651590129,0.8009,2496.4,2496.3,0.80091]
[1751651590323,0.80096,2496.3,2496.2,0.80092]
[1751651590525,2.15486,2496.3,2496.2,0.80095]
[1751651590828,0.80101,2496.0,2495.9,0.80102]
[1751651591029,4.00881,2496.0,2495.9,0.80102]
[1751651591728,5.36271,2496.0,2495.9,0.80102]
[1751651593931,0.80107,2495.9,2495.8,0.80104]
[1751651594132,2.82997,2495.9,2495.8,0.80104]
[1751651594532,2.0289,2495.9,2495.8,0.80104]
[1751651597836,2.82994,2495.9,2495.8,0.80104]
[1751651598033,0.80111,2495.8,2495.7,0.80108]
[1751651598238,2.16511,2495.8,2495.7,0.80108]
[1751651604347,3.28626583,2495.8,2495.7,0.80108]
[1751651604851,0.80114,2495.6,2495.5,0.6954]
[1751651605150,0.80124,2495.4,2495.3,0.80121]
[1751651605641,1.92254923,2495.4,2495.3,0.80121]
[1751651605839,0.80127,2495.3,2495.2,0.80125]
[1751651606040,5.39877,2495.3,2495.2,0.80125]
[1751651606443,6.53628187,2495.3,2495.2,0.80125]
[1751651607448,5.39877,2495.3,2495.2,0.80125]
[1751651608851,4.5975,2495.3,2495.2,0.80125]
[1751651609554,3.2078,2495.3,2495.2,0.80125]
[1751651610448,2.92303,2495.7,2495.6,0.80114]
[1751651610649,4.05762525,2495.7,2495.6,0.80114]
[1751651617159,0.80118,2495.6,2495.5,0.80115]
[1751651617459,3.23902789,2495.6,2495.5,0.80115]
[1751651618857,3.92892789,2495.6,2495.5,0.80115]
[1751651619857,2.43784789,2495.6,2495.5,0.80115]
[1751651620162,0.80113,2495.7,2495.6,0.80114]
[1751651620363,1.93324473,2495.7,2495.6,0.80114]
[1751651622464,1.13211473,2495.7,2495.6,0.80114]
[1751651622967,1.93322473,2495.7,2495.6,0.80114]
[1751651623160,1.13211473,2495.7,2495.6,0.80114]
[1751651624355,3.2078,2495.8,2495.7,0.80111]
[1751651624560,4.34037443,2495.8,2495.7,0.80111]
[1751651625064,5.14147443,2495.8,2495.7,0.80111]
[1751651628573,4.34037443,2495.8,2495.7,0.80111]
[1751651628869,5.13583406,2495.8,2495.7,0.80111]
[1751651634377,4.33476406,2495.8,2495.7,0.80111]
[1751651634577,5.13583406,2495.8,2495.7,0.80111]
[1751651636976,4.33476406,2495.8,2495.7,0.80111]
[1751651637179,1.12696406,2495.8,2495.7,0.80111]
[1751651637382,1.3088,2496.3,2495.9,2.00257]
[1751651637576,4.70097,2496.5,2496.4,0.80088]
[1751651637771,0.8009,2496.4,2496.3,0.80088]
[1751651637975,2.1171,2496.4,2496.3,0.80088]
[1751651638277,1.3162,2496.4,2496.3,0.80088]
[1751651638982,2.11708,2496.4,2496.3,0.80088]
[1751651642979,1.3162,2496.4,2496.3,0.80088]
[1751651645182,3.2078,2496.5,2496.4,0.80088]
[1751651645578,4.00865,2496.5,2496.4,0.80088]
[1751651645977,3.2078,2496.5,2496.4,0.80088]
[1751651646380,4.00865,2496.5,2496.4,0.80088]
[1751651646580,3.2078,2496.5,2496.4,0.80088]
[1751651647786,1.3732,2496.7,2496.6,0.80082]
[1751651648080,0.6727,2496.9,2496.8,0.80075]
[1751651648782,1.9696,2496.9,2496.8,0.80075]
[1751651649172,1.2969,2496.9,2496.8,0.80075]
[1751651649377,4.68116,2497.1,2497.0,0.80069]
[1751651649579,3.8805,2497.1,2497.0,0.80069]
[1751651650473,4.68116,2497.1,2497.0,0.80069]
[1751651650983,3.8805,2497.1,2497.0,0.80069]
[1751651651278,4.68116,2497.1,2497.0,0.80069]
[1751651651880,3.8805,2497.1,2497.0,0.80069]
[1751651652085,4.68116,2497.1,2497.0,0.80069]
[1751651653480,3.2078,2497.1,2496.1,3.5041505]
[1751651653678,0.80072,2497.0,2496.9,0.80069]
[1751651653880,2.85062,2497.0,2496.9,0.80069]
[1751651654181,2.0499,2497.0,2496.9,0.80069]
[1751651654381,2.85059,2497.0,2496.9,0.80069]
[1751651656075,3.2078,2497.1,2497.0,0.80069]
[1751651656683,2.86369,2497.3,2497.2,0.80062]
[1751651656982,2.39852213,2498.4,2497.2,11.271]
[1751651657178,1.73708532,2498.3,2497.9,3.2078]
[1751651657486,0.6523,2498.3,2498.0,0.80035]
[1751651657781,0.80031,2498.2,2498.0,0.80035]
[1751651658088,0.80034,2498.1,2498.0,0.80035]
[1751651658584,0.80035,2498.1,2498.0,0.80035]
[1751651659380,0.80032,2498.2,2498.1,0.80033]
[1751651660084,2.16852,2498.2,2498.0,0.80035]
[1751651660886,1.3682,2498.2,2498.1,0.80034]
[1751651661088,2.1685,2498.2,2498.1,0.80034]
[1751651661285,1.3682,2498.2,2498.1,0.80034]
[1751651661792,40.8,2498.5,2498.4,0.80024]
[1751651662088,0.80021,2498.5,2498.4,0.80024]
[1751651662788,0.8002,2498.6,2498.5,0.80019]
[1751651663181,2.1697,2498.6,2498.5,0.80019]
[1751651663383,0.80023,2498.5,2498.4,0.80022]
[1751651663685,0.80027,2498.4,2498.3,0.80025]
[1751651663886,0.80027,2498.4,2498.2,3.8666]
[1751651663887,0.80028,2498.3,2498.2,0.80028]
[1751651664087,1.3695,2498.3,2498.2,0.80028]
[1751651664287,0.8003,2498.3,2497.9,3.9157]
[1751651664487,0.8003,2498.3,2498.2,0.80029]
[1751651664882,2.00061,2498.4,2497.9,3.9157]
[1751651665081,0.80033,2498.2,2498.1,0.80032]
[1751651665279,1.3695,2498.3,2497.9,3.9157]
[1751651665480,0.80037,2498.0,2497.9,4.71609]
[1751651665695,0.80037,2498.0,2497.9,3.9157]
[1751651665887,2.0011,2497.8,2497.3,14.4708]
[1751651666191,0.80052,2497.6,2497.5,0.8005]
[1751651666582,2.85789,2497.7,2497.6,0.8005]
[1751651666782,0.80056,2497.5,2497.4,0.80055]
[1751651667183,0.80052,2497.6,2497.5,0.8005]
[1751651668489,4.05859,2497.7,2497.3,3.2078]
[1751651668789,0.80056,2497.4,2497.3,4.00838]
[1751651668993,0.80054,2497.6,2497.5,0.80051]
[1751651669292,0.80054,2497.6,2497.5,0.52905781]
[1751651669486,0.80054,2497.6,2497.5,1.32958781]
[1751651669688,0.80054,2497.6,2497.5,0.52905781]
[1751651669989,5.89736,2498.0,2497.7,0.80044]
[1751651670294,0.80048,2497.8,2497.7,0.80044]
[1751651670892,0.80043,2497.8,2497.7,0.80044]
[1751651671196,0.80043,2497.8,2497.7,1.47094]
[1751651671888,0.80043,2497.8,2497.7,0.80044]
[1751651672087,0.80051,2497.7,2497.6,0.80048]
[1751651672294,2.14784,2497.9,2497.8,0.80043]
[1751651672883,0.7168,2498.1,2497.9,0.80037]
[1751651673093,0.80039,2498.0,2497.9,0.80037]
[1751651676192,2.86456,2498.1,2498.0,0.80037]
[1751651677096,0.8004,2498.0,2497.9,0.80038]
[1751651677595,0.80043,2497.9,2497.8,0.80041]
[1751651678691,0.80043,2497.8,2497.7,0.6749]
[1751651678897,0.80046,2497.7,2497.6,3.2078]
[1751651679396,0.80049,2497.7,2497.6,0.80046]
[1751651682394,2.0623,2497.8,2497.3,3.8558]
[1751651682698,0.80056,2497.4,2497.3,4.65639]
[1751651684696,0.80056,2497.4,2497.3,3.8558]
[1751651685403,0.80056,2497.4,2497.3,4.65637]
[1751651686004,0.80056,2497.4,2497.3,3.8558]
[1751651686899,0.80066,2497.1,2497.0,3.9177]
[1751651687098,0.80066,2497.1,2497.0,3.2078]
[1751651688002,3.42032,2497.2,2496.7,4.00857]
[1751651688299,0.80075,2496.8,2496.7,4.00857]
[1751651689500,0.80075,2496.8,2496.7,4.00856]
[1751651690305,0.80075,2496.8,2496.7,4.00858]
[1751651691206,0.80075,2496.8,2496.7,3.2078]
[1751651693406,2.00193,2496.8,2496.4,0.80087]
[1751651693611,0.80088,2496.5,2496.4,0.80087]
[1751651693803,0.80084,2496.6,2496.5,0.80082]
[1751651694703,1.3668,2496.7,2496.6,0.80082]
[1751651694903,2.16758,2496.7,2496.6,0.80082]
[1751651695205,0.689,2497.1,2497.0,0.80069]
[1751651695402,2.16743,2497.3,2497.2,0.80062]
[1751651695602,0.80066,2497.2,2497.1,0.80063]
[1751651696095,0.80068,2497.1,2497.0,0.80066]
[1751651696301,2.23468,2497.1,2497.0,0.80066]
[1751651696701,1.434,2497.1,2497.0,0.80066]
[1751651696896,2.68021,2497.4,2497.2,0.80062]
[1751651696897,0.80061,2497.3,2497.2,0.80062]
[1751651697201,1.47938,2497.4,2497.3,0.80059]
[1751651697404,0.80061,2497.3,2497.2,0.8006]
[1751651698503,0.80062,2497.2,2497.1,1.46453]
[1751651698702,0.80069,2497.1,2497.0,0.80067]
[1751651698907,2.11369,2497.1,2497.0,0.80067]
[1751651699108,0.80069,2497.0,2496.9,4.0085]
[1751651701311,2.11368,2497.1,2497.0,0.80069]
[1751651701712,1.313,2497.1,2497.0,0.80069]
[1751651702010,2.11366,2497.1,2497.0,1.50999]
[1751651702916,0.7132,2497.2,2497.1,0.80066]
[1751651703120,0.80063,2497.2,2497.1,0.80066]
[1751651703318,2.0502,2497.4,2497.0,2.71101]
[1751651703623,0.80052,2497.6,2497.5,0.8005]
[1751651705016,0.80053,2497.5,2497.4,1.46055]
[1751651705215,0.80053,2497.5,2497.2,4.0084]
[1751651705216,0.80059,2497.3,2497.2,4.0084]
[1751651705820,2.81029,2497.4,2497.3,0.80059]
[1751651706622,0.80059,2497.3,2497.2,4.0084]
[1751651707018,2.13479,2497.3,2497.2,4.0084]
[1751651707226,2.13479,2497.3,2497.2,3.2078]
[1751651707518,1.9882,2497.3,2496.8,3.2078]
[1751651707722,3.41718,2497.2,2496.8,4.00854]
[1751651707924,0.80072,2496.9,2496.8,4.00854]
[1751651709027,0.80072,2496.9,2496.8,3.2078]
[1751651709323,0.80071,2497.0,2496.8,3.2078]
[1751651709621,1.4156,2497.1,2496.8,3.2078]
[1751651709622,0.80072,2496.9,2496.8,3.2078]
[1751651710722,0.80072,2496.9,2496.8,4.00855]
[1751651711125,0.80072,2496.9,2496.8,3.2078]
[1751651711317,0.80072,2496.9,2496.8,4.00855]
[1751651714218,0.80071,2497.0,2496.9,0.80069]
[1751651715428,1.9107564,2497.0,2496.9,0.80069]
[1751651718126,0.80071,2497.0,2496.9,0.80069]
[1751651720133,0.80072,2496.9,2496.8,4.00854]
[1751651721128,0.80072,2496.9,2496.8,0.80074]
[1751651723133,0.80075,2496.8,2496.7,0.6625]
[1751651723438,0.80078,2496.7,2496.6,3.2078]
[1751651726237,0.80078,2496.7,2496.6,4.00862]
[1751651726429,1.9113943,2496.7,2496.6,4.00862]
[1751651726736,1.9113943,2496.7,2496.6,3.2078]
[1751651727938,3.2286943,2496.7,2496.6,3.2078]
[1751651728937,3.2286943,2496.7,2496.6,4.00862]
[1751651729134,3.2286943,2496.7,2496.6,3.2078]
[1751651729435,3.2286943,2496.7,2496.6,4.00862]
[1751651729739,3.2286943,2496.7,2496.6,3.2078]
[1751651730035,3.2286943,2496.7,2496.6,4.00862]
[1751651730337,3.2286943,2496.7,2496.6,3.2078]
[1751651730732,3.2286943,2496.7,2496.6,4.00862]
[1751651731837,1.9113943,2496.7,2496.6,4.00862]
[1751651733637,0.80078,2496.7,2496.6,4.00862]
[1751651736340,1.91257478,2496.7,2496.6,4.00862]
[1751651738144,1.11179478,2496.7,2496.6,4.00862]
[1751651738339,1.91257478,2496.7,2496.6,4.00862]
[1751651740747,1.11179478,2496.7,2496.6,4.00862]
[1751651742849,1.91257478,2496.7,2496.6,4.00862]
[1751651743745,1.91257478,2496.7,2496.6,0.80082]
[1751651745046,1.11179478,2496.7,2496.6,0.80082]
[1751651745447,1.91257478,2496.7,2496.6,0.80082]
[1751651745647,1.11179478,2496.7,2496.6,0.80082]
[1751651746145,0.80076,2496.8,2496.7,0.80075]
[1751651746339,1.90813444,2496.8,2496.7,0.80075]
[1751651746535,0.80076,2496.8,2496.7,0.80075]
[1751651747544,1.90317205,2496.8,2496.7,0.80075]
[1751651749548,1.10241205,2496.8,2496.7,0.80075]
[1751651750151,1.90316205,2496.8,2496.7,0.80075]
[1751651750451,1.10241205,2496.8,2496.7,0.80075]
[1751651751254,0.80073,2496.9,2496.8,0.80075]
[1751651751647,1.9002614,2496.9,2496.8,0.80075]
[1751651753653,1.9002514,2496.9,2496.8,0.80075]
[1751651755150,1.0995314,2496.9,2496.8,0.80075]
[1751651755556,40.38848,2497.1,2496.7,2.00192]
[1751651755750,0.80068,2497.1,2497.0,0.80069]
[1751651755950,1.89279795,2497.1,2497.0,0.80069]
[1751651758856,1.09211795,2497.1,2497.0,0.80069]
[1751651759657,1.89277795,2497.1,2497.0,0.80069]
[1751651760857,1.09211795,2497.1,2497.0,0.80069]
[1751651761558,39.17763,2497.2,2497.1,0.80066]
[1751651761758,40.26110103,2497.2,2497.1,0.80066]
[1751651762455,41.46204103,2497.2,2496.8,3.2078]
[1751651762754,0.80072,2496.9,2496.8,4.00854]
[1751651763457,0.80072,2496.9,2496.8,3.2078]
[1751651763656,2.58842339,2496.9,2496.8,4.00855]
[1751651765458,2.58842339,2496.9,2496.8,3.2078]
[1751651765859,2.58842339,2496.9,2496.8,4.00855]
[1751651766061,2.58842339,2496.9,2496.8,3.2078]
[1751651766260,2.58842339,2496.9,2496.8,4.00855]
[1751651766861,2.58842339,2496.9,2496.8,3.2078]
[1751651767257,0.80075,2496.8,2496.7,0.80076]
[1751651767564,0.80078,2496.7,2496.6,4.00859]
[1751651767758,1.51398,2496.7,2496.6,0.80079]
[1751651769465,2.60587022,2496.7,2496.6,0.80079]
[1751651770566,0.80085,2496.5,2496.4,1.45675]
[1751651770969,1.296,2496.6,2496.5,0.80085]
[1751651770970,2.09684,2496.6,2496.5,0.80085]
[1751651771168,3.18875856,2496.6,2496.5,0.80085]
[1751651771465,2.09682,2496.6,2496.5,0.80085]
[1751651771868,3.20060578,2496.6,2496.5,0.80085]
[1751651772864,3.20060578,2496.6,2496.3,3.2078]
[1751651772865,2.39978578,2496.6,2496.3,3.2078]
[1751651773071,0.80087,2496.5,2496.4,0.80085]
[1751651773570,1.514,2496.7,2496.6,0.80082]
[1751651773864,2.61768665,2496.7,2496.6,0.80082]
[1751651774268,1.81688665,2496.7,2496.6,0.80082]
[1751651774571,1.10368665,2496.7,2496.6,0.80082]
[1751651774767,5.35975,2496.9,2496.8,0.80075]
[1751651774965,1.09853957,2496.9,2496.8,0.80075]
[1751651775165,0.664,2497.1,2496.9,0.80072]
[1751651775166,0.8007,2497.0,2496.9,0.80072]
[1751651775367,1.89919642,2497.0,2496.9,0.80072]
[1751651775963,1.09849642,2497.0,2496.9,0.80072]
[1751651776164,3.2078,2497.2,2497.1,0.80066]
[1751651776364,4.30662939,2497.2,2497.1,0.80066]
[1751651776770,4.30662939,2497.2,2497.1,1.46706]
[1751651778467,1.09882939,2497.2,2497.1,1.46706]
[1751651780272,41.60057,2497.4,2497.3,0.80059]
[1751651780473,42.69359887,2497.4,2497.3,0.80059]
[1751651780870,44.07269887,2497.4,2497.3,0.80059]
[1751651784077,43.27212887,2497.4,2497.3,0.80059]
[1751651784269,41.89302887,2497.4,2497.3,0.80059]
[1751651784475,1.09302887,2497.4,2497.3,0.80059]
[1751651785179,4.00831,2497.6,2497.5,0.80053]
[1751651785476,6.44982065,2497.6,2497.5,0.80053]
[1751651787778,0.80056,2497.5,2497.4,0.80054]
[1751651787980,2.18656,2497.5,2497.4,0.80054]
[1751651793380,3.38734,2497.5,2497.0,5.20953]
[1751651793581,0.80061,2497.3,2497.2,0.80059]
[1751651796192,2.84388,2497.4,2497.3,0.80059]
[1751651796387,0.80062,2497.3,2497.2,0.8006]
[1751651796583,3.30323444,2497.3,2497.2,0.8006]
[1751651799088,2.50261444,2497.3,2497.2,0.8006]
[1751651799382,3.30320444,2497.3,2497.2,0.8006]
[1751651799790,1.09281444,2497.3,2497.2,0.8006]
[1751651800183,0.6533,2497.8,2497.5,0.80053]
[1751651800390,0.6533,2497.8,2497.7,0.80046]
[1751651800586,1.74644819,2497.8,2497.7,0.80046]
[1751651801390,1.09314819,2497.8,2497.7,0.80046]
[1751651801584,1.89357819,2497.8,2497.7,0.80046]
[1751651803095,1.09314819,2497.8,2497.7,0.80046]
[1751651803394,1.89357819,2497.8,2497.7,0.80046]
[1751651803796,1.09314819,2497.8,2497.7,0.80046]
[1751651805398,1.89357819,2497.8,2497.7,0.80046]
[1751651805797,1.09314819,2497.8,2497.7,0.80046]
[1751651806293,4.0082,2497.9,2497.8,0.80043]
[1751651806498,4.0082,2497.9,2497.7,0.80045]
[1751651806499,0.80045,2497.8,2497.7,0.80045]
[1751651808495,0.80046,2497.7,2497.6,2.14808]
[1751651808700,2.19515,2497.8,2497.7,0.80046]
[1751651809902,2.19515,2497.8,2497.6,1.47058]
[1751651809903,0.80046,2497.7,2497.6,1.47058]
[1751651810298,0.80046,2497.7,2497.6,2.00228741]
[1751651810500,1.3947,2497.8,2497.7,0.80046]
[1751651810703,1.3947,2497.8,2497.7,1.33216741]
[1751651811304,3.28679745,2497.8,2497.7,0.53170741]
[1751651811498,3.94759745,2497.8,2497.7,0.53170741]
[1751651812604,3.94759745,2497.8,2497.7,1.33216741]
[1751651812805,3.94759745,2497.8,2497.7,0.53170741]
[1751651813010,40.30859745,2497.8,2497.7,0.53170741]
[1751651814104,0.80046,2497.7,2497.6,0.80047]
[1751651814304,1.89209745,2497.7,2497.6,0.80047]
[1751651814506,0.80051,2497.6,2497.5,0.8005]
[1751651814706,0.80055,2497.5,2497.4,0.80055]
[1751651814907,0.80055,2497.5,2497.4,0.80054]
[1751651815403,0.80056,2497.4,2497.3,1.48047]
[1751651815705,2.11834,2497.5,2497.4,0.80056]
[1751651815906,3.20887944,2497.5,2497.4,0.80056]
[1751651817308,2.40833944,2497.5,2497.4,0.80056]
[1751651818103,1.89106944,2497.5,2497.4,0.80056]
[1751651821513,1.09053944,2497.5,2497.4,0.80056]
[1751651822915,1.89106944,2497.5,2497.4,0.80056]
[1751651825009,1.09053944,2497.5,2497.4,0.80056]
[1751651826011,1.89106944,2497.5,2497.4,0.80056]
[1751651826212,1.89887841,2497.5,2497.4,0.80056]
[1751651828611,1.89887841,2497.5,2497.3,0.6799]
[1751651828612,0.80056,2497.4,2497.3,1.48047]
[1751651829307,1.89783018,2497.4,2497.3,0.6799]
[1751651829509,1.09727018,2497.4,2497.3,1.48049]
[1751651829709,1.89783018,2497.4,2497.3,1.48049]
[1751651829908,1.09727018,2497.4,2497.3,1.48049]
[1751651830209,1.89783018,2497.4,2497.3,1.48049]
[1751651834616,0.80056,2497.4,2497.3,1.48049]
[1751651834810,1.89699243,2497.4,2497.3,1.48049]
[1751651836912,1.09643243,2497.4,2497.3,1.48049]
[1751651837113,3.2078,2497.7,2497.6,0.8005]
[1751651837312,1.09640969,2497.7,2497.6,0.8005]
[1751651842416,0.80042,2497.9,2497.8,0.80043]
[1751651842623,1.88597684,2497.9,2497.8,0.80043]
[1751651845326,1.08555684,2497.9,2497.8,0.80043]
[1751651846224,0.80037,2498.0,2497.9,0.8004]
[1751651846425,1.88361655,2498.0,2497.9,0.8004]
[1751651847220,1.08324655,2498.0,2497.9,0.8004]
[1751651847821,40.36108,2498.3,2498.2,0.8003]
[1751651848024,41.44410429,2498.3,2498.2,0.8003]
[1751651848325,82.24410429,2498.3,2498.2,0.8003]
[1751651848717,4.29082429,2498.3,2498.2,0.8003]
[1751651849019,1.08302429,2498.3,2498.2,0.8003]
[1751651849217,0.80032,2498.2,2498.1,0.80031]
[1751651849820,0.80031,2498.2,2498.1,0.80031]
[1751651850028,0.8003,2498.3,2498.1,0.80031]
[1751651850325,1.4304,2498.3,2498.2,0.8003]
[1751651850526,0.80032,2498.2,2498.1,0.80033]
[1751651851823,0.80034,2498.1,2498.0,3.9273]
[1751651852024,0.80038,2498.0,2497.9,0.8004]
[1751651852228,0.80035,2498.1,2498.0,0.80037]
[1751651852625,4.6196,2498.3,2497.9,0.80038]
[1751651852826,0.80037,2498.0,2497.9,0.80038]
[1751651854633,0.80037,2498.0,2497.8,1.49691]
[1751651854827,0.8004,2497.9,2497.8,1.49691]
[1751651855223,0.80052,2497.6,2497.4,3.2078]
[1751651855428,0.80052,2497.6,2497.5,0.80051]
[1751651856532,0.80049,2497.7,2497.6,0.80049]
[1751651856832,0.80051,2497.6,2497.5,0.80051]
[1751651859742,0.80053,2497.5,2497.4,4.70864]
[1751651859930,0.80052,2497.6,2497.4,4.70864]
[1751651860136,0.80053,2497.5,2497.4,4.70864]
[1751651860336,0.80053,2497.5,2497.4,3.9081]
[1751651860733,0.80053,2497.5,2497.4,4.70866]
[1751651863940,0.80053,2497.5,2497.4,1.50086]
[1751651864646,1.87588277,2497.5,2497.4,1.50086]
[1751651865136,0.80059,2497.3,2497.2,0.8006]
[1751651865336,0.80059,2497.3,2497.2,1.4961]
[1751651866739,0.80058,2497.4,2497.3,0.80057]
[1751651866940,1.88842832,2497.4,2497.3,0.80057]
[1751651869355,0.80059,2497.3,2497.2,1.49609]
[1751651870055,0.80058,2497.4,2497.3,0.80056]
[1751651870754,3.32650152,2497.4,2497.3,0.80059]
[1751651871255,0.80059,2497.3,2497.2,0.6955]
[1751651871446,0.80066,2497.1,2497.0,3.2078]
[1751651871651,3.08965841,2497.3,2496.3,3.18314227]
[1751651871652,0.80075,2496.8,2496.7,1.3373]
[1751651871853,0.80075,2496.8,2496.7,0.6682]
[1751651872052,1.88907425,2496.8,2496.7,1.46899]
[1751651872258,2.23905,2496.8,2496.7,1.46899]
[1751651872460,42.30594,2496.9,2496.8,0.80075]
[1751651872663,0.80075,2496.8,2496.7,1.46896]
[1751651872857,41.5052,2496.9,2496.8,0.80075]
[1751651873158,42.68837938,2496.9,2496.8,0.80075]
[1751651873352,0.80075,2496.8,2496.7,1.46896]
[1751651873554,0.80075,2496.8,2496.7,0.6682]
[1751651873756,0.80075,2496.8,2496.7,1.46899]
[1751651874255,41.60074,2496.9,2496.8,0.80075]
[1751651874461,40.8,2496.9,2496.8,0.80075]
[1751651874660,41.60072,2496.9,2496.8,0.80075]
[1751651875159,0.80072,2496.9,2496.8,0.80075]
[1751651876062,0.80071,2497.0,2496.9,0.8007]
[1751651876262,0.80073,2496.9,2496.8,0.80073]
[1751651877360,0.80071,2497.0,2496.9,0.8007]
[1751651879861,42.9005,2497.2,2496.8,2.00184]
[1751651880068,0.8006,2497.3,2497.2,0.80062]
[1751651880654,41.6006,2497.3,2497.2,0.80062]
[1751651880965,0.80058,2497.4,2497.3,0.80059]
[1751651881164,0.80055,2497.5,2497.4,0.80053]
[1751651881461,0.8006,2497.4,2497.3,0.80057]
[1751651882970,41.60055,2497.5,2497.4,0.80056]
[1751651883265,0.80058,2497.4,2497.3,0.80058]
[1751651884755,40.8,2497.5,2497.1,2.00164]
[1751651884961,41.60055,2497.5,2497.4,0.80056]
[1751651885269,44.0761108,2497.5,2497.4,0.80056]